[Event "Reykjavik Open 2025"]
[Site "Reykjavik"]
[Date "2025.04.11"]
[Round "4.43"]
[White "Willems, Niels"]
[Black "Arruebarrena Rodriguez, Rafael"]
[Result "1-0"]
[Annotator "ChessBase"]
[ECO "A21"]
[WhiteElo "2394"]
[BlackElo "2129"]
[PlyCount "67"]
[EventDate "2025.04.09"]
[EventType "swiss"]
[EventCountry "ISL"]
[SourceTitle "playchess.com"]
[Source "ChessBase"]
[SourceQuality "1"]
[TimeControl "40/5400+30:1800+30"]

1. c4 {[%emt 0:00:04]} e5 {[%emt 0:00:06]} 2. Nc3 {[%emt 0:00:07]} Bb4 {[%emt 0:00:24]} 3. Qc2 {[%emt 0:00:18]} Nf6 {[%emt 0:00:41]} 4. Nf3 {[%emt 0:00:07]} Bxc3 {[%emt 0:01:06]} 5. bxc3 {[%emt 0:00:50]} d6 {[%emt 0:00:49]} 6. e4 {[%emt 0:00:24]} O-O {[%emt 0:04:33]} 7. g3 {[%emt 0:00:55]} Nc6 {[%emt 0:01:02]} 8. Bg2 {[%emt 0:00:26]} h6 {[%emt 0:04:23]} 9. O-O {[%emt 0:00:26]} Be6 {[%emt 0:08:08]} 10. d3 {[%emt 0:00:12]} a6 {[%emt 0:04:59]} 11. a4 {[%emt 0:02:29]} Na5 {[%emt 0:06:12]} 12. Nh4 {[%emt 0:02:13]} c6 {[%emt 0:04:58]} 13. Rb1 {[%emt 0:05:50]} d5 {[%emt 0:07:22]} 14. cxd5 {[%emt 0:32:56]} cxd5 {[%emt 0:00:10]} 15. Be3 {[%emt 0:00:13]} Qd7 {[%emt 0:07:40]} 16. Bb6 {[%emt 0:02:04]} Nc6 {[%emt 0:00:15]} 17. Rfd1 {[%emt 0:02:08]} Rfc8 {[%emt 0:03:05]} 18. Qb2 {[%emt 0:01:18]} Rab8 {[%emt 0:06:12]} 19. a5 {[%emt 0:01:32]} Qe7 {[%emt 0:03:20]} 20. h3 {[%emt 0:03:19]} dxe4 {[%emt 0:03:50]} 21. dxe4 {[%emt 0:00:08]} Nd7 {[%emt 0:00:35]} 22. Nf5 {[%emt 0:01:10]} Bxf5 {[%emt 0:00:14]} 23. exf5 {[%emt 0:00:02]} Nxb6 {[%emt 0:00:10]} 24. Qxb6 {[%emt 0:00:04]} Qc7 {[%emt 0:05:35]} 25. Rd5 {[%emt 0:04:27]} Ne7 {[%emt 0:05:07]} 26. Qxc7 {[%emt 0:00:21]} Rxc7 {[%emt 0:00:02]} 27. Rxe5 {[%emt 0:00:08]} f6 {[%emt 0:00:05]} 28. Re6 {[%emt 0:00:41]} Kf7 {[%emt 0:04:38]} 29. Reb6 {[%emt 0:01:57]} Rc5 {[%emt 0:03:07]} 30. Bxb7 {[%emt 0:00:17]} Rd8 {[%emt 0:02:52]} 31. Rxa6 {[%emt 0:00:45]} Rd2 {[%emt 0:01:04]} 32. Be4 {[%emt 0:02:10]} Ra2 {[%emt 0:00:48]} 33. Rb7 {[%emt 0:05:18]} Raxa5 {[%emt 0:00:46]} 34. Re6 {[%emt 0:00:10]} 1-0

[Event "Reykjavik Open 2025"]
[Site "Reykjavik"]
[Date "2025.04.11"]
[Round "4.44"]
[White "Burgalat, Eliot"]
[Black "Thorfinnsson, Bjorn"]
[Result "1/2-1/2"]
[Annotator "RC"]
[ECO "C90"]
[WhiteElo "2119"]
[BlackElo "2386"]
[PlyCount "130"]
[EventDate "2025.04.09"]
[EventType "swiss"]
[EventCountry "ISL"]
[SourceTitle "playchess.com"]
[Source "ChessBase"]
[SourceQuality "1"]
[TimeControl "40/5400+30:1800+30"]

1. e4 {[%emt 0:00:03]} e5 {[%emt 0:00:06]} 2. Nf3 {[%emt 0:00:06]} Nc6 {[%emt 0:00:06]} 3. Bb5 {[%emt 0:00:05]} a6 {[%emt 0:00:49]} 4. Ba4 {[%emt 0:00:04]} Nf6 {[%emt 0:00:05]} 5. O-O {[%emt 0:00:06]} Be7 {[%emt 0:03:57]} 6. Re1 {[%emt 0:00:05]} b5 {[%emt 0:00:04]} 7. Bb3 {[%emt 0:00:03]} d6 {[%emt 0:00:04]} 8. c3 {[%emt 0:00:11]} Na5 {[%emt 0:00:04]} 9. Bc2 {[%emt 0:00:04]} c5 {[%emt 0:00:03]} 10. h3 {[%emt 0:00:21]} Qc7 {[%emt 0:00:07]} 11. d4 {[%emt 0:05:25]} Bd7 {[%emt 0:00:07]} 12. d5 {[%emt 0:03:55]} Rg8 {[%emt 0:00:04]} 13. Bg5 {[%emt 0:18:07]} h6 {[%emt 0:00:59]} 14. Bxf6 {[%emt 0:02:09]} Bxf6 {[%emt 0:00:14]} 15. Nbd2 {[%emt 0:02:54]} g6 {[%emt 0:24:22]} 16. b4 {[%emt 0:03:24]} Nb7 {[%emt 0:01:37]} 17. a4 {[%emt 0:02:14]} Ke7 {[%emt 0:01:10]} 18. Nf1 {[%emt 0:09:36]} Rgc8 {[%emt 0:01:56]} 19. Ne3 {[%emt 0:02:13]} cxb4 {[%emt 0:05:24]} 20. cxb4 {[%emt 0:01:01]} a5 {[%emt 0:03:21]} 21. axb5 {[%emt 0:09:11]} axb4 {[%emt 0:00:38]} 22. Rb1 {[%emt 0:04:13]} Ra3 {[%emt 0:06:07]} 23. Rxb4 {[%emt 0:12:28]} Rxe3 {[%emt 0:00:13]} 24. Rxe3 {[%emt 0:00:03]} Qxc2 {[%emt 0:00:08]} 25. Qxc2 {[%emt 0:00:02]} Rc6 {[%emt 0:00:06]} 26. Qc3 Rxc3 {[%emt 0:00:30]} 27. b6 {[%emt 0:01:26]} Rc2 {[%emt 0:06:45]} 28. Reb3 {[%emt 0:08:14]} Bc8 29. Ra3 {[%emt 0:00:00]} Kd7 {[%emt 0:01:42]} 30. Ra7 {[%emt 0:00:00]} Bd8 {[%emt 0:04:42]} 31. Kf1 {[%emt 0:03:09]} f5 {[%emt 0:00:27]} 32. Ke1 {[%emt 0:00:21]} fxe4 {[%emt 0:02:17]} 33. Nd2 {[%emt 0:00:02]} Rc5 {[%emt 0:00:27]} 34. Nxe4 {[%emt 0:00:12]} Rxd5 {[%emt 0:01:07]} 35. Rc4 {[%emt 0:00:04]} Rb5 {[%emt 0:20:24]} 36. Nxd6 {[%emt 0:01:19]} Rb1+ {[%emt 0:08:17]} 37. Ke2 {[%emt 0:06:06]} Bxb6 {[%emt 0:00:30]} 38. Nxc8 {[%emt 0:00:41]} Rb2+ {[%emt 0:00:15]} 39. Kd3 {[%emt 0:02:01]} Bxa7 {[%emt 0:00:19]} 40. Nxa7 {[%emt 0:00:05]} Nd6 {[%emt 0:01:59]} 41. Rg4 {[%emt 0:35:01]} g5 {[%emt 0:36:29]} 42. h4 {[%emt 0:00:51]} Rb3+ {[%emt 0:02:54]} 43. Kc2 {[%emt 0:00:00]} Ra3 {[%emt 0:00:00]} 44. hxg5 {[%emt 0:00:00]} Rxa7 {[%emt 0:00:00]} 45. gxh6 {[%emt 0:00:00]} Ke6 {[%emt 0:00:00]} 46. Rg6+ {[%emt 0:00:00]} Kd5 {[%emt 0:00:00]} 47. Rg7 {[%emt 0:00:00]} Ra1 {[%emt 0:00:00]} 48. h7 {[%emt 0:00:00]} Rh1 {[%emt 0:00:00]} 49. g4 {[%emt 0:00:00]} Nb5 {[%emt 0:00:00]} 50. g5 {[%emt 0:00:00]} Nd4+ {[%emt 0:00:00]} 51. Kd2 {[%emt 0:00:00]} Ne6 {[%emt 0:00:00]} 52. Rd7+ {[%emt 0:00:00]} Kc6 {[%emt 0:00:00]} 53. Rf7 {[%emt 0:00:00]} Nxg5 {[%emt 0:00:00]} 54. Rf5 {[%emt 0:00:00]} Ne4+ {[%emt 0:00:00]} 55. Kd3 {[%emt 0:00:00]} Nc5+ {[%emt 0:00:00]} 56. Kc4 {[%emt 0:00:00]} Rc1+ {[%emt 0:00:00]} 57. Kb4 {[%emt 0:00:00]} Nd3+ {[%emt 0:00:00]} 58. Kb3 {[%emt 0:00:00]} Nc5+ {[%emt 0:02:12]} 59. Kb4 {[%emt 0:00:00]} Rh1 {[%emt 0:00:16]} 60. Kc4 {[%emt 0:00:00]} Nd7 {[%emt 0:03:09]} 61. f4 {[%emt 0:00:00]} Rh4 {[%emt 0:01:45]} 62. h8=Q {[%emt 0:00:00]} Rxh8 {[%emt 0:00:27]} 63. fxe5 {[%emt 0:00:00]} Rh4+ {[%emt 0:00:15]} 64. Kc3 {[%emt 0:01:10]} Kd5 {[%emt 0:01:45]} 65. e6+ {[%emt 0:00:22]} Kxe6 {[%emt 0:00:08]} 1/2-1/2

[Event "Reykjavik Open 2025"]
[Site "Reykjavik"]
[Date "2025.04.14"]
[Round "8.1"]
[White "Maghsoodloo, Parham"]
[Black "Royal, Shreyas"]
[Result "1-0"]
[Annotator "TA"]
[ECO "A33"]
[WhiteElo "2684"]
[BlackElo "2465"]
[PlyCount "37"]
[EventDate "2025.04.09"]
[EventType "swiss"]
[EventCountry "ISL"]
[SourceTitle "playchess.com"]
[Source "ChessBase"]
[SourceQuality "1"]
[TimeControl "40/5400+30:1800+30"]

{[%evp 16,37,9,16,68,58,59,77,146,139,235,238,254,237,299,291,450,439,551,543,639,611,656,643]} 1. c4 {[%emt 0:00:01]} c5 {[%emt 0:00:06]} 2. Nc3 {[%emt 0:01:48]} Nf6 {[%emt 0:00:05]} 3. Nf3 {[%emt 0:01:49]} Nc6 {[%emt 0:00:13]} 4. d4 {[%emt 0:00:41]} cxd4 {[%emt 0:00:15]} 5. Nxd4 {[%emt 0:00:05]} e6 {[%emt 0:00:04]} 6. g3 {[%emt 0:01:26]} Qb6 {[%emt 0:00:44]} 7. Nb3 {[%emt 0:01:18]} Ne5 {[%emt 0:02:26]} 8. e4 {[%emt 0:01:43]} Bb4 {[%emt 0:00:07]} 9. Qe2 {[%emt 0:03:09] next f4 is good for White.} Bxc3+ {[%emt 0:01:18] A33: Symmetrical English: 2 Nf3 Nf6 3 d4 cxd4 4 Nxd4 e6 5 Nc3 Nc6.} ({Better is} 9... d6 $1 $11) 10. bxc3 $14 {[%emt 0:00:13] Threatens to win with f4.} d6 $1 {[%emt 0:00:23]} 11. f4 {[%emt 0:08:05][%cal Bf2f4,Bf4f5][%mdl 32]} Nc6 {[%emt 0:00:09]} (11... Ng6 $142) 12. Ba3 $16 {[%emt 0:02:47]} e5 {[%emt 0:03:34]} (12... Na5 $16 {was called for.}) 13. Bxd6 $18 {[%emt 0:11:10]} Bg4 $146 {[%emt 0:03:07] [#]} (13... exf4 14. c5 Qa6 15. Qxa6 bxa6 16. e5 Ng4 17. Bg2 Bd7 18. gxf4 Ne3 19. Be4 Rc8 {1-0 Ivanchuk,V (2714)-Sokolov,I (2610) Hoogovens Wijk aan Zee 1999 (4)}) 14. Qd3 {[%emt 0:00:00]} a5 {[%emt 0:00:08][%cal Ba7a5,Ba5a4][%mdl 32]} 15. c5 {[%emt 0:01:34]} ({Worse is} 15. Bxe5 Nxe5 16. fxe5 Nd7 $11) (15. fxe5 $6 Nd7 16. c5 Qd8 $18) 15... Qa7 {[%emt 0:00:15]} (15... Qd8 $142 16. Nd2 (16. fxe5 Nd7 $18) 16... exf4) 16. f5 {[%emt 0:02:25] White is clearly winning.} ({Weaker is} 16. fxe5 Nd7 17. Qe3 Ndxe5 $18) 16... a4 {[%emt 0:04:05]} 17. Nd2 {[%emt 0:02:32]} Nd7 {[%emt 0:00:07]} 18. h3 {[%emt 0:01:13]} Nxc5 {[%emt 0:00:13]} 19. Qe3 {[%emt 0:02:54] White took control after the opening.   Weighted Error Value: White=0.00 (flawless) /Black=0.72  Mistake:       	---       	Black=3      OK:         	White=6     	---        Best:        	White=2     	---        Strong:       	---       	Black=1} 1-0

[Event "Reykjavik Open 2025"]
[Site "Reykjavik"]
[Date "2025.04.14"]
[Round "8.2"]
[White "Muradli, Mahammad"]
[Black "Ivanchuk, Vasyl"]
[Result "1/2-1/2"]
[Annotator "TA"]
[ECO "D38"]
[WhiteElo "2588"]
[BlackElo "2604"]
[PlyCount "116"]
[EventDate "2025.04.09"]
[EventType "swiss"]
[EventCountry "ISL"]
[SourceTitle "playchess.com"]
[Source "ChessBase"]
[SourceQuality "1"]
[TimeControl "40/5400+30:1800+30"]

{[%evp 13,116,0,1,0,0,4,24,0,0,0,-8,0,4,0,36,29,28,20,25,25,20,0,0,0,0,0,0,0,0,0,0,0,28,10,34,34,72,0,0,0,0,0,52,51,51,51,50,50,51,51,55,52,55,54,67,67,107,54,57,45,48,10,18,10,13,0,0,-225,-6,-13,-6,-16,-6,-6,-6,-6,-6,-6,-6,-6,-6,-85,0,-8,0,-8,-6,-10,-9,-9,-9,-17,-25,-22,-20,-43,-68,-66,-8,-8,0,0,0,0,0]} 1. d4 {[%emt 0:01:00]} Nf6 {[%emt 0:00:08]} 2. c4 {[%emt 0:00:12]} e6 {[%emt 0:00:05]} 3. Nf3 {[%emt 0:00:10]} d5 {[%emt 0:00:09]} 4. Nc3 {[%emt 0:00:12]} Bb4 {[%emt 0:00:06]} 5. Qa4+ {[%emt 0:08:07]} Nc6 {[%emt 0:00:36]} 6. a3 {[%emt 0:00:28]} Bxc3+ {[%emt 0:02:05]} 7. bxc3 {[%emt 0:00:09]} Bd7 {[%emt 0:00:16][%cal Oc6d4]} 8. cxd5 {[%emt 0:04:03] D38: Queen's Gambit Declined: Ragozin Defence (4 Nf3 Bb4).} exd5 {[%emt 0:00:18]} 9. Bg5 {[%emt 0:00:42]} h6 {[%emt 0:00:44]} 10. Bxf6 {[%emt 0:05:48] White has an edge.} (10. Bh4 $5) 10... Qxf6 {[%emt 0:00:36]} 11. e3 {[%emt 0:00:21]} O-O {[%emt 0:11:37]} 12. Bd3 {[%emt 0:01:03]} Bg4 {[%emt 0:30:02]} 13. Nd2 $146 {[%emt 0:02:30]} (13. Qd1 Na5 14. h3 Bxf3 15. Qxf3 Qxf3 16. gxf3 c5 17. Rb1 a6 18. Rb6 Rac8 19. Kd2 {½-½ Mikaelyan,A (2507)-Antipov,M (2600) North American op 32nd 2022 (4)}) 13... Bf5 {[%emt 0:05:14]} 14. Be2 {[%emt 0:05:39]} a6 {[%emt 0:08:53]} 15. Qb3 {[%emt 0:05:21][%csl LRb7,LRd5]} Qd6 {[%emt 0:03:15]} 16. O-O {[%emt 0:06:00][%cal Oc3c4]} b5 {[%emt 0:04:54]} 17. a4 {[%emt 0:04:56]} Na5 {[%emt 0:00:09]} 18. Qb4 {[%emt 0:01:26]} Nc4 {[%emt 0:00:54]} 19. Qxd6 {[%emt 0:14:49]} cxd6 {[%emt 0:01:29]} 20. Ra2 {[%emt 0:00:10]} Nxd2 {[%emt 0:13:05]} 21. Rxd2 {[%emt 0:00:03]} bxa4 {[%emt 0:00:05]} 22. Ra2 {[%emt 0:03:16]} Rfb8 {[%emt 0:07:20]} 23. Rxa4 {[%emt 0:07:49][%cal Of1a1]} Rb2 {[%emt 0:03:42]} 24. Bf3 {[%emt 0:06:50]} (24. Bxa6 Bd3 $17) (24. Rxa6 Rab8 25. Bf3 Bd3 $17) 24... Rc8 {[%emt 0:02:36]} 25. Ra3 {[%emt 0:11:22]} (25. Bxd5 Bd3 26. c4 (26. Rc1 Rxc3 27. Raa1 Rxc1+ 28. Rxc1 Bc2 $15) 26... Bxf1 27. Kxf1 Rb6) (25. h4 $16) 25... Bd3 $11 {[%emt 0:00:26]} 26. Rc1 {[%emt 0:00:06]} Bc4 {[%emt 0:00:51]} 27. g4 {[%emt 0:02:05]} Rc6 {[%emt 0:01:45]} (27... f5 $11) 28. Ra5 $14 {[%emt 0:02:28]} Rb5 {[%emt 0:00:01]} 29. Rxb5 {[%emt 0:00:53]} axb5 {[%emt 0:00:02][%mdl 4096] Endgame KRB-KRB} 30. Ra1 {[%emt 0:00:11] Inhibits Ra6.} Kf8 {[%emt 0:00:53]} 31. Ra7 {[%emt 0:04:08]} Bb3 {[%emt 0:00:35]} 32. Ra5 {[%emt 0:02:14]} Bc4 {[%emt 0:01:50]} 33. h4 {[%emt 0:01:12][%cal Bh2h4,Bh4h5][%mdl 32]} g5 {[%emt 0:00:01]} 34. h5 {[%emt 0:00:36]} Ke7 {[%emt 0:00:14]} 35. Kg2 {[%emt 0:00:43] White is more active.} ({White should play} 35. Ra7+ $16 Ke6 36. Ra8) 35... Rc8 {[%emt 0:02:16]} 36. Kg3 {[%emt 0:00:17]} Ke6 {[%emt 0:00:02]} 37. Bg2 {[%emt 0:00:56]} Bd3 {[%emt 0:00:11]} 38. Ra3 {[%emt 0:00:02]} Rc4 {[%emt 0:00:44]} 39. f4 {[%emt 0:01:04]} Ra4 {[%emt 0:00:12]} 40. f5+ {[%emt 0:00:41] [#]} (40. Rb3 $1 $11 {and White is okay.}) 40... Kf6 $2 {[%emt 0:01:31]} ({Black should play} 40... Kd7 $1 $19 41. Rxa4 bxa4 42. Bxd5 Bc2) 41. Rb3 $11 {[%emt 0:03:12]} Bc4 {[%emt 0:00:16]} 42. Rb1 {[%emt 0:04:36]} Ra3 {[%emt 0:03:43]} 43. Bf1 {[%emt 0:02:34]} Rxc3 {[%emt 0:02:31]} 44. Kf3 {[%emt 0:00:27] [#]} b4 $1 {[%emt 0:08:28]} 45. Bxc4 {[%emt 0:00:09]} Rxc4 {[%emt 0:00:01] KR-KR. Black is a pawn up.} ({Not} 45... dxc4 46. Rxb4 Rc2 47. Rb6 $18) 46. Ra1 {[%emt 0:06:40]} Rc7 {[%emt 0:10:59]} 47. Ke2 {[%emt 0:01:03]} (47. Ra2 $11 {keeps the balance.}) 47... Ke7 {[%emt 0:01:09]} (47... Rc2+ $17 48. Kd3 Rg2) 48. Kd2 {[%emt 0:03:31]} Kd7 {[%emt 0:03:48]} 49. Ra6 {[%emt 0:01:52]} b3 {[%emt 0:02:48]} 50. Rb6 {[%emt 0:00:18]} Rc2+ {[%emt 0:00:32]} 51. Kd3 {[%emt 0:00:02]} Rb2 {[%emt 0:00:18]} 52. Kc3 {[%emt 0:08:42]} Rg2 {[%emt 0:00:02]} 53. Rxb3 {[%emt 0:00:16]} Rxg4 {[%emt 0:00:51]} 54. Rb7+ {[%emt 0:00:01]} Ke8 {[%emt 0:00:02] Hoping for ...Rh4.} 55. f6 {[%emt 0:01:13]} Re4 {[%emt 0:00:25] Wards off Re7+} (55... Rg3 $15 56. Re7+ Kf8) 56. Kd3 {[%emt 0:00:02] The position is equal.} Re6 {[%emt 0:00:45]} 57. Rb8+ {[%emt 0:00:05]} Kd7 {[%emt 0:00:06]} 58. Rb7+ {[%emt 0:00:02]} Ke8 {[%emt 0:00:05] Weighted Error Value: White=0.15 (very precise) /Black=0.18 (very precise)   Loses game:     	White=1     	---        Missed win:     	---       	Black=1      Mistake:       	White=3     	Black=3      Inaccurate:     	White=2     	Black=3      OK:         	White=19    	Black=20     Best:        	White=7     	Black=6} 1/2-1/2

[Event "Reykjavik Open 2025"]
[Site "Reykjavik"]
[Date "2025.04.14"]
[Round "8.3"]
[White "Lu, Shanglei"]
[Black "Safarli, Eltaj"]
[Result "1-0"]
[Annotator "TA"]
[ECO "C54"]
[WhiteElo "2618"]
[BlackElo "2617"]
[PlyCount "83"]
[EventDate "2025.04.09"]
[EventType "swiss"]
[EventCountry "ISL"]
[SourceTitle "playchess.com"]
[Source "ChessBase"]
[SourceQuality "1"]
[TimeControl "40/5400+30:1800+30"]

{[%evp 15,83,24,31,29,25,24,44,24,32,28,30,22,35,14,33,0,0,0,7,0,22,9,50,17,38,38,40,43,33,33,48,48,59,42,46,51,58,58,59,57,93,24,117,126,216,231,222,223,235,232,212,219,235,240,448,468,492,489,564,547,561,520,670,652,1189,1110,1258,1251,1195,1191]} 1. e4 {[%emt 0:00:04]} e5 {[%emt 0:00:08]} 2. Nf3 {[%emt 0:00:05]} Nc6 {[%emt 0:00:04]} 3. Bc4 {[%emt 0:00:19]} Bc5 {[%emt 0:00:07]} 4. c3 {[%emt 0:00:07]} Nf6 {[%emt 0:00:04]} 5. d3 {[%emt 0:00:06]} h6 {[%emt 0:00:11]} 6. O-O {[%emt 0:00:31]} d6 {[%emt 0:00:18]} 7. b4 {[%emt 0:00:05]} Bb6 {[%emt 0:00:04]} 8. a4 {[%emt 0:00:05]} a6 {[%emt 0:00:34]} 9. Re1 {[%emt 0:03:20] C54: Giuoco Piano: 4 c3 Nf6, main lines with 5 d4 and 5 d3.} O-O {[%emt 0:00:16]} 10. Nbd2 {[%emt 0:01:10]} Ne7 {[%emt 0:03:35]} 11. Qc2 $1 $146 {[%emt 0:08:24][%mdl 8] White is slightly better. An important novelty.} (11. a5 $5 Ba7 $8 12. Nf1 $11) (11. a5 Ba7 12. Nf1 Be6 13. Ba2 Ng6 14. Be3 Bxe3 15. Nxe3 Qd7 16. Bb1 c6 17. d4 {½-½ Kramnik,V (2753)-Martinez Alcantara,J (2612) London Clash of Claims m blitz 2024 (15)}) 11... Ng6 {[%emt 0:02:15]} 12. d4 {[%emt 0:01:46]} Re8 {[%emt 0:04:06]} 13. Bb2 {[%emt 0:01:39]} c6 {[%emt 0:01:30]} 14. Bd3 {[%emt 0:07:24]} Bc7 {[%emt 0:05:17]} 15. h3 {[%emt 0:04:16]} Nh7 {[%emt 0:06:09]} 16. Bf1 {[%emt 0:06:12]} Ng5 {[%emt 0:00:53]} 17. c4 {[%emt 0:00:21]} a5 {[%emt 0:03:23]} 18. b5 {[%emt 0:06:52]} c5 {[%emt 0:01:06]} 19. dxc5 {[%emt 0:05:16]} dxc5 {[%emt 0:00:05]} 20. Nxg5 {[%emt 0:00:04]} Qxg5 {[%emt 0:01:01]} 21. Ra3 {[%emt 0:00:16]} Nf4 {[%emt 0:01:10][%cal Bg6f4,Bf4e6,Be6d4][%mdl 32]} 22. Rg3 {[%emt 0:00:39]} Qh5 {[%emt 0:09:11]} 23. Nb1 {[%emt 0:02:13]} Ne6 {[%emt 0:01:38]} 24. Nc3 {[%emt 0:04:55]} Nd4 {[%emt 0:00:06]} 25. Qc1 {[%emt 0:00:22]} Be6 {[%emt 0:03:25]} 26. Nd5 {[%emt 0:00:42]} Bd8 {[%emt 0:00:18][%cal Bc7d8,Bd8g5,Bg5f4][%mdl 32] Prevents Nf6+} 27. Bxd4 {[%emt 0:06:25]} cxd4 {[%emt 0:08:29]} 28. c5 {[%emt 0:01:07] White is much more active.} (28. Be2 $16 Qh4 29. c5) 28... Bxd5 {[%emt 0:07:51]} (28... Rc8 $1 $11 {remains equal.}) 29. Be2 $40 {[%emt 0:02:56][%cal Bf1e2,Be2f3,Bf3e4][%mdl 160] White attacks with force.} (29. exd5 e4) 29... Qh4 {[%emt 0:01:33]} (29... Bg5 $16 {might work better.}) 30. exd5 $18 {[%emt 0:01:27]} Bg5 {[%emt 0:04:57] [#]} 31. Qc4 {[%emt 0:06:58]} (31. Rg4 Bxc1 (31... Qxg4 32. Bxg4 Bxc1 33. Rxc1 $15) 32. Rxh4 Ba3 $16) 31... Bf4 {[%emt 0:02:23]} 32. Rg4 {[%emt 0:11:17]} Qf6 {[%emt 0:07:59]} 33. d6 {[%emt 0:00:12]} Rad8 {[%emt 0:01:30] Black is weak on the light squares} 34. Bf3 {[%emt 0:03:20]} d3 $2 {[%emt 0:15:50]} (34... b6 35. c6 (35. cxb6 Qxd6 36. g3 Bd2 $16) 35... Qxd6) 35. Qxd3 {[%emt 0:02:57] White is clearly winning.} e4 {[%emt 0:01:02]} 36. Bxe4 {[%emt 0:00:46]} ({And not} 36. Rxe4 Qa1+ 37. Qf1 Bh2+ 38. Kxh2 Qxf1 $17) 36... h5 {[%emt 0:00:11] [#]} 37. Rxf4 {[%emt 0:00:35]} Qxf4 {[%emt 0:00:02]} 38. Qd5 {[%emt 0:08:17]} h4 {[%emt 0:07:36]} 39. Qxb7 {[%emt 0:01:31]} Qg5 {[%emt 0:00:56]} 40. d7 {[%emt 0:02:03]} Re7 {[%emt 0:02:44]} 41. c6 {[%emt 0:30:13] Qc8 is the strong threat.} Qd2 {[%emt 0:30:32]} 42. Rf1 {[%emt 0:00:18] Weighted Error Value: White=0.06 (flawless) /Black=0.60  Mistake:       	White=1     	Black=3      Inaccurate:     	White=2     	Black=3      OK:         	White=17    	Black=8      Best:        	White=3     	---        Brilliant:      	White=1     	---} 1-0